[Event "Titled Tuesday Blitz December 27 Late 2022"]
[White "Herman, Daniel"]
[Black "Omariev, Maksim"]
[WhiteFideId "30935008"]
[BlackFideId "4193423"]
[WhiteElo "1956"]
[BlackElo "2304"]
[Result "0-1"]
[Round "04"]
[TimeControl "180+2"]
[Date "2022.12.27"]
[WhiteClock "0:00:08"]
[BlackClock "0:00:03"]

1. Nc3 {[%clk 0:03:00]}  d5 {[%clk 0:02:52]} 2. e4 {[%clk 0:03:01]}  d4 {[%clk 0:02:52]} 3. Nce2 {[%clk 0:02:59]}  a6 {[%clk 0:02:48]} 4. Nf3 {[%clk 0:02:58]}  c5 {[%clk 0:02:47]} 5. Ng3 {[%clk 0:02:58]}  Nc6 {[%clk 0:02:47]} 6. Bc4 {[%clk 0:02:57]}  Nf6 {[%clk 0:02:46]} 7. d3 {[%clk 0:02:56]}  b5 {[%clk 0:02:44]} 8. Bb3 {[%clk 0:02:51]}  Na5 {[%clk 0:02:37]} 9. O-O {[%clk 0:02:45]}  e6 {[%clk 0:02:30]} 10. c3 {[%clk 0:02:40]}  Nxb3 {[%clk 0:02:26]} 11. axb3 {[%clk 0:02:35]}  Bb7 {[%clk 0:02:14]} 12. b4 {[%clk 0:02:22]}  dxc3 {[%clk 0:02:12]} 13. bxc5 {[%clk 0:02:22]}  cxb2 {[%clk 0:02:10]} 14. Bxb2 {[%clk 0:02:23]}  Bxc5 {[%clk 0:02:10]} 15. d4 {[%clk 0:02:18]}  Bb6 {[%clk 0:02:07]} 16. d5 {[%clk 0:02:13]}  exd5 {[%clk 0:01:58]} 17. Nf5 {[%clk 0:01:53]}  O-O {[%clk 0:01:38]} 18. exd5 {[%clk 0:01:25]}  Re8 {[%clk 0:01:38]} 19. d6 {[%clk 0:01:18]}  Nh5 {[%clk 0:00:24]} 20. Ne7+ {[%clk 0:00:35]}  Rxe7 {[%clk 0:00:20]} 21. dxe7 {[%clk 0:00:35]}  Qxe7 {[%clk 0:00:21]} 22. Re1 {[%clk 0:00:29]}  Qb4 {[%clk 0:00:21]} 23. Qd2 {[%clk 0:00:19]}  Qg4 {[%clk 0:00:16]} 24. Re3 {[%clk 0:00:16]}  Nf4 {[%clk 0:00:09]} 25. g3 {[%clk 0:00:10]}  Nh3+ {[%clk 0:00:02]} 26. Kf1 {[%clk 0:00:09]}  Bxe3 {[%clk 0:00:02]} 27. Qxe3 {[%clk 0:00:09]}  Bxf3 {[%clk 0:00:03]} 28. Qe5 {[%clk 0:00:08]}  f6 {[%clk 0:00:02]} 29. Qc3 {[%clk 0:00:07]}  Ng5 {[%clk 0:00:02]} 30. Re1 {[%clk 0:00:07]}  Qh3+ {[%clk 0:00:02]} 31. Kg1 {[%clk 0:00:08]}  Qg2# {[%clk 0:00:03]} 0-1


[Site "https://www.chess.com"]

[Event "Titled Tuesday Blitz December 27 Late 2022"]
[White "Hoffmann, Asa"]
[Black "Sukandar, Irine Kharisma"]
[WhiteFideId "2001470"]
[BlackFideId "7101937"]
[WhiteElo "2185"]
[BlackElo "2390"]
[Result "0-1"]
[Round "04"]
[TimeControl "180+2"]
[Date "2022.12.27"]
[WhiteClock "0:00:02"]
[BlackClock "0:00:19"]

1. d4 {[%clk 0:02:58]}  Nf6 {[%clk 0:02:59]} 2. Bg5 {[%clk 0:02:50]}  Ne4 {[%clk 0:02:53]} 3. Bf4 {[%clk 0:02:49]}  h5 {[%clk 0:02:47]} 4. f3 {[%clk 0:02:49]}  Nf6 {[%clk 0:02:47]} 5. e4 {[%clk 0:02:48]}  d6 {[%clk 0:02:42]} 6. Nc3 {[%clk 0:02:46]}  g6 {[%clk 0:02:35]} 7. e5 {[%clk 0:02:44]}  Nfd7 {[%clk 0:02:34]} 8. e6 {[%clk 0:02:43]}  fxe6 {[%clk 0:02:31]} 9. Bd3 {[%clk 0:02:41]}  Rg8 {[%clk 0:02:31]} 10. Qe2 {[%clk 0:02:38]}  Nf6 {[%clk 0:02:30]} 11. Nh3 {[%clk 0:02:37]}  Nc6 {[%clk 0:02:29]} 12. Be3 {[%clk 0:02:24]}  e5 {[%clk 0:02:28]} 13. dxe5 {[%clk 0:02:21]}  Nxe5 {[%clk 0:02:28]} 14. Bb5+ {[%clk 0:02:08]}  c6 {[%clk 0:02:27]} 15. Ba4 {[%clk 0:02:07]}  Bxh3 {[%clk 0:02:26]} 16. gxh3 {[%clk 0:02:06]}  Qa5 {[%clk 0:02:22]} 17. Bb3 {[%clk 0:02:04]}  d5 {[%clk 0:02:13]} 18. f4 {[%clk 0:02:02]}  Ned7 {[%clk 0:02:08]} 19. O-O-O {[%clk 0:02:02]}  O-O-O {[%clk 0:02:08]} 20. Bd4 {[%clk 0:01:56]}  Bh6 {[%clk 0:02:06]} 21. Rhf1 {[%clk 0:01:48]}  Rde8 {[%clk 0:01:36]} 22. Kb1 {[%clk 0:01:45]}  e6 {[%clk 0:01:29]} 23. a3 {[%clk 0:01:25]}  c5 {[%clk 0:01:23]} 24. Be5 {[%clk 0:01:23]}  Nxe5 {[%clk 0:01:15]} 25. fxe5 {[%clk 0:01:22]}  Nd7 {[%clk 0:01:14]} 26. Ba4 {[%clk 0:01:18]}  Ref8 {[%clk 0:01:12]} 27. Bxd7+ {[%clk 0:01:16]}  Kxd7 {[%clk 0:01:12]} 28. Ne4 {[%clk 0:00:58]}  Rxf1 {[%clk 0:01:02]} 29. Qxf1 {[%clk 0:00:55]}  Rf8 {[%clk 0:01:02]} 30. Qg2 {[%clk 0:00:50]}  Bf4 {[%clk 0:00:50]} 31. Qxg6 {[%clk 0:00:48]}  Bxe5 {[%clk 0:00:50]} 32. Qxh5 {[%clk 0:00:44]}  Rf5 {[%clk 0:00:44]} 33. Rxd5+ {[%clk 0:00:37]}  Kc6 {[%clk 0:00:34]} 34. Qxf5 {[%clk 0:00:17]}  exf5 {[%clk 0:00:33]} 35. Rxc5+ {[%clk 0:00:13]}  Qxc5 {[%clk 0:00:32]} 36. Nxc5 {[%clk 0:00:13]}  Kxc5 {[%clk 0:00:32]} 37. h4 {[%clk 0:00:13]}  Bxh2 {[%clk 0:00:32]} 38. h5 {[%clk 0:00:13]}  f4 {[%clk 0:00:30]} 39. Kc1 {[%clk 0:00:12]}  f3 {[%clk 0:00:30]} 40. Kd2 {[%clk 0:00:12]}  Kd4 {[%clk 0:00:29]} 41. Ke1 {[%clk 0:00:11]}  Ke3 {[%clk 0:00:28]} 42. Kf1 {[%clk 0:00:11]}  Be5 {[%clk 0:00:28]} 43. c3 {[%clk 0:00:09]}  a5 {[%clk 0:00:25]} 44. a4 {[%clk 0:00:07]}  Bf6 {[%clk 0:00:24]} 45. h6 {[%clk 0:00:07]}  Be5 {[%clk 0:00:22]} 46. h7 {[%clk 0:00:07]}  Bf6 {[%clk 0:00:22]} 47. b4 {[%clk 0:00:05]}  Bxc3 {[%clk 0:00:19]} 48. bxa5 {[%clk 0:00:05]}  Bf6 {[%clk 0:00:18]} 49. a6 {[%clk 0:00:02]}  bxa6 {[%clk 0:00:18]} 50. a5 {[%clk 0:00:02]}  Be5 {[%clk 0:00:19]} 0-1


[Site "https://www.chess.com"]

[Event "Titled Tuesday Blitz December 27 Late 2022"]
[White "Holt, Conrad"]
[Black "gshwbedhkhd"]
[WhiteFideId "2034387"]
[WhiteElo "2540"]
[BlackElo "2538"]
[Result "1-0"]
[Round "04"]
[TimeControl "180+2"]
[Date "2022.12.27"]
[WhiteClock "0:01:55"]
[BlackClock "0:01:09"]

1. d4 {[%clk 0:03:00]}  f5 {[%clk 0:02:58]} 2. g3 {[%clk 0:03:00]}  Nf6 {[%clk 0:02:56]} 3. Bg2 {[%clk 0:03:00]}  g6 {[%clk 0:02:56]} 4. Nh3 {[%clk 0:02:55]}  Bg7 {[%clk 0:02:57]} 5. O-O {[%clk 0:02:55]}  d6 {[%clk 0:02:52]} 6. Nc3 {[%clk 0:02:52]}  Nc6 {[%clk 0:02:50]} 7. d5 {[%clk 0:02:51]}  Ne5 {[%clk 0:02:48]} 8. Nf4 {[%clk 0:02:50]}  O-O {[%clk 0:02:45]} 9. Re1 {[%clk 0:02:48]}  c6 {[%clk 0:02:44]} 10. a4 {[%clk 0:02:38]}  cxd5 {[%clk 0:02:10]} 11. Ncxd5 {[%clk 0:02:36]}  e6 {[%clk 0:02:08]} 12. Nxf6+ {[%clk 0:02:30]}  Bxf6 {[%clk 0:02:09]} 13. a5 {[%clk 0:02:27]}  d5 {[%clk 0:02:06]} 14. a6 {[%clk 0:02:25]}  bxa6 {[%clk 0:02:03]} 15. Nxd5 {[%clk 0:02:21]}  exd5 {[%clk 0:01:55]} 16. Bxd5+ {[%clk 0:02:20]}  Kg7 {[%clk 0:01:45]} 17. Bxa8 {[%clk 0:02:19]}  Qb6 {[%clk 0:01:43]} 18. Be3 {[%clk 0:02:15]}  Qc7 {[%clk 0:01:37]} 19. Bg2 {[%clk 0:02:11]}  Rd8 {[%clk 0:01:36]} 20. Qc1 {[%clk 0:02:11]}  Nc4 {[%clk 0:01:32]} 21. c3 {[%clk 0:02:10]}  Qb8 {[%clk 0:01:25]} 22. Bd4 {[%clk 0:02:08]}  Bxd4 {[%clk 0:01:14]} 23. cxd4 {[%clk 0:02:07]}  Rxd4 {[%clk 0:01:15]} 24. Qc3 {[%clk 0:02:07]}  Qe5 {[%clk 0:01:15]} 25. e3 {[%clk 0:02:04]}  Rg4 {[%clk 0:01:11]} 26. h3 {[%clk 0:01:59]}  Qxc3 {[%clk 0:01:09]} 27. bxc3 {[%clk 0:01:59]}  Rg5 {[%clk 0:01:09]} 28. Ra4 {[%clk 0:01:55]} 1-0


[Site "https://www.chess.com"]

[Event "Titled Tuesday Blitz December 27 Late 2022"]
[White "Itkis, Boris"]
[Black "Ladan, Nicholas"]
[WhiteFideId "1209167"]
[BlackFideId "30918855"]
[WhiteElo "2329"]
[BlackElo "2228"]
[Result "0-1"]
[Round "04"]
[TimeControl "180+2"]
[Date "2022.12.27"]
[WhiteClock "0:00:03"]
[BlackClock "0:00:16"]

1. e4 {[%clk 0:03:00]}  e5 {[%clk 0:03:00]} 2. Nf3 {[%clk 0:02:59]}  Nc6 {[%clk 0:03:00]} 3. Nc3 {[%clk 0:03:00]}  Nf6 {[%clk 0:03:00]} 4. Bb5 {[%clk 0:02:59]}  Nd4 {[%clk 0:03:00]} 5. O-O {[%clk 0:02:59]}  Bc5 {[%clk 0:02:58]} 6. Nxe5 {[%clk 0:02:42]}  Nxb5 {[%clk 0:02:41]} 7. Nxb5 {[%clk 0:02:42]}  Nxe4 {[%clk 0:02:12]} 8. Qe2 {[%clk 0:02:34]}  Nxf2 {[%clk 0:01:27]} 9. Nc6+ {[%clk 0:02:19]}  Ne4+ {[%clk 0:01:26]} 10. d4 {[%clk 0:01:50]}  dxc6 {[%clk 0:01:22]} 11. Qxe4+ {[%clk 0:01:43]}  Be6 {[%clk 0:01:18]} 12. dxc5 {[%clk 0:01:31]}  cxb5 {[%clk 0:01:15]} 13. Qxb7 {[%clk 0:01:27]}  O-O {[%clk 0:01:04]} 14. Qe4 {[%clk 0:01:17]}  Bd5 {[%clk 0:01:00]} 15. Qf4 {[%clk 0:01:13]}  c6 {[%clk 0:00:55]} 16. Bd2 {[%clk 0:01:13]}  Re8 {[%clk 0:00:37]} 17. Rf2 {[%clk 0:01:08]}  Re4 {[%clk 0:00:33]} 18. Qg3 {[%clk 0:01:08]}  Qh4 {[%clk 0:00:24]} 19. Qxh4 {[%clk 0:00:40]}  Rxh4 {[%clk 0:00:25]} 20. Bc3 {[%clk 0:00:41]}  Re8 {[%clk 0:00:24]} 21. b3 {[%clk 0:00:34]}  Rhe4 {[%clk 0:00:22]} 22. h3 {[%clk 0:00:24]}  f6 {[%clk 0:00:22]} 23. Kh2 {[%clk 0:00:21]}  Kf7 {[%clk 0:00:22]} 24. Rd1 {[%clk 0:00:20]}  h5 {[%clk 0:00:22]} 25. Rdd2 {[%clk 0:00:20]}  Re3 {[%clk 0:00:20]} 26. Bd4 {[%clk 0:00:18]}  Re1 {[%clk 0:00:19]} 27. a3 {[%clk 0:00:14]}  Rc1 {[%clk 0:00:16]} 28. b4 {[%clk 0:00:13]}  Ree1 {[%clk 0:00:16]} 29. Kg3 {[%clk 0:00:11]}  Re4 {[%clk 0:00:16]} 30. c3 {[%clk 0:00:10]}  h4+ {[%clk 0:00:16]} 31. Kh2 {[%clk 0:00:03]}  Ree1 {[%clk 0:00:16]} 0-1


[Site "https://www.chess.com"]

[Event "Titled Tuesday Blitz December 27 Late 2022"]
[White "Janaszak, Dawid"]
[Black "Wieczorek, Zbigniew"]
[WhiteFideId "1119206"]
[BlackFideId "1102001"]
[WhiteElo "2316"]
[BlackElo "2150"]
[Result "1-0"]
[Round "04"]
[TimeControl "180+2"]
[Date "2022.12.27"]
[WhiteClock "0:00:54"]
[BlackClock "0:00:03"]

1. e4 {[%clk 0:02:56]}  g6 {[%clk 0:02:59]} 2. Nc3 {[%clk 0:02:54]}  Bg7 {[%clk 0:02:59]} 3. h4 {[%clk 0:02:54]}  h5 {[%clk 0:02:59]} 4. Bc4 {[%clk 0:02:54]}  c6 {[%clk 0:02:59]} 5. d4 {[%clk 0:02:49]}  d5 {[%clk 0:02:49]} 6. exd5 {[%clk 0:02:48]}  b5 {[%clk 0:02:49]} 7. Bb3 {[%clk 0:02:46]}  b4 {[%clk 0:02:49]} 8. Nce2 {[%clk 0:02:43]}  cxd5 {[%clk 0:02:49]} 9. Nf3 {[%clk 0:02:34]}  Nf6 {[%clk 0:02:47]} 10. Bg5 {[%clk 0:02:26]}  O-O {[%clk 0:02:35]} 11. Ne5 {[%clk 0:02:25]}  a5 {[%clk 0:02:24]} 12. c3 {[%clk 0:02:23]}  Ba6 {[%clk 0:02:23]} 13. O-O {[%clk 0:02:15]}  a4 {[%clk 0:02:09]} 14. Bc2 {[%clk 0:02:14]}  a3 {[%clk 0:02:04]} 15. bxa3 {[%clk 0:02:10]}  Bxe2 {[%clk 0:01:49]} 16. Qxe2 {[%clk 0:02:09]}  bxc3 {[%clk 0:01:48]} 17. a4 {[%clk 0:02:05]}  Qc8 {[%clk 0:00:31]} 18. Rab1 {[%clk 0:01:54]}  Nc6 {[%clk 0:00:12]} 19. Rfd1 {[%clk 0:01:46]}  Nxe5 {[%clk 0:00:09]} 20. dxe5 {[%clk 0:01:47]}  Ng4 {[%clk 0:00:10]} 21. Rxd5 {[%clk 0:01:37]}  e6 {[%clk 0:00:08]} 22. Rdb5 {[%clk 0:01:37]}  Qc7 {[%clk 0:00:07]} 23. Bf4 {[%clk 0:01:28]}  Rfd8 {[%clk 0:00:07]} 24. g3 {[%clk 0:01:03]}  Rd4 {[%clk 0:00:06]} 25. Qf3 {[%clk 0:00:58]}  Rad8 {[%clk 0:00:05]} 26. Rb7 {[%clk 0:00:55]}  Qc5 {[%clk 0:00:04]} 27. Be3 {[%clk 0:00:55]}  R4d7 {[%clk 0:00:03]} 28. Bxc5 {[%clk 0:00:54]} 1-0


[Site "https://www.chess.com"]

[Event "Titled Tuesday Blitz December 27 Late 2022"]
[White "Jaracz, Pawel"]
[Black "Kravtsiv, Martyn"]
[WhiteFideId "1102222"]
[BlackFideId "14113147"]
[WhiteElo "2467"]
[BlackElo "2598"]
[Result "1-0"]
[Round "04"]
[TimeControl "180+2"]
[Date "2022.12.27"]
[WhiteClock "0:01:57"]
[BlackClock "0:00:44"]

1. e4 {[%clk 0:03:00]}  e5 {[%clk 0:02:59]} 2. Nf3 {[%clk 0:03:00]}  Nc6 {[%clk 0:02:59]} 3. Bb5 {[%clk 0:03:00]}  a6 {[%clk 0:02:59]} 4. Ba4 {[%clk 0:03:00]}  Nf6 {[%clk 0:02:59]} 5. d3 {[%clk 0:03:00]}  b5 {[%clk 0:02:58]} 6. Bb3 {[%clk 0:03:00]}  Be7 {[%clk 0:02:58]} 7. Bd2 {[%clk 0:02:53]}  O-O {[%clk 0:02:57]} 8. Nc3 {[%clk 0:02:49]}  d6 {[%clk 0:02:55]} 9. h3 {[%clk 0:02:48]}  Na5 {[%clk 0:02:53]} 10. Nd5 {[%clk 0:02:45]}  Nxb3 {[%clk 0:02:50]} 11. Nxe7+ {[%clk 0:02:45]}  Qxe7 {[%clk 0:02:51]} 12. axb3 {[%clk 0:02:45]}  Bb7 {[%clk 0:02:45]} 13. c4 {[%clk 0:02:42]}  Nd7 {[%clk 0:02:41]} 14. g4 {[%clk 0:02:38]}  Nc5 {[%clk 0:02:23]} 15. Be3 {[%clk 0:02:37]}  Ne6 {[%clk 0:02:16]} 16. Qd2 {[%clk 0:02:33]}  Kh8 {[%clk 0:02:12]} 17. h4 {[%clk 0:02:30]}  c6 {[%clk 0:02:04]} 18. h5 {[%clk 0:02:21]}  d5 {[%clk 0:02:03]} 19. Nxe5 {[%clk 0:01:59]}  dxe4 {[%clk 0:01:50]} 20. d4 {[%clk 0:01:59]}  Rad8 {[%clk 0:01:46]} 21. Qc3 {[%clk 0:01:57]}  b4 {[%clk 0:01:27]} 22. Qd2 {[%clk 0:01:56]}  f6 {[%clk 0:00:44]} 23. Ng6+ {[%clk 0:01:55]}  hxg6 {[%clk 0:00:44]} 24. hxg6+ {[%clk 0:01:56]}  Kg8 {[%clk 0:00:44]} 25. f4 {[%clk 0:01:57]} 1-0


[Site "https://www.chess.com"]

[Event "Titled Tuesday Blitz December 27 Late 2022"]
[White "Jenkins, Drake"]
[Black "Koutlas, Nikolaos"]
[WhiteFideId "2022397"]
[BlackFideId "25827138"]
[WhiteElo "2130"]
[BlackElo "2341"]
[Result "0-1"]
[Round "04"]
[TimeControl "180+2"]
[Date "2022.12.27"]
[WhiteClock "0:00:01"]
[BlackClock "0:00:48"]

1. Nf3 {[%clk 0:03:00]}  c5 {[%clk 0:02:47]} 2. c4 {[%clk 0:03:00]}  Nc6 {[%clk 0:02:46]} 3. Nc3 {[%clk 0:02:59]}  g6 {[%clk 0:02:43]} 4. g3 {[%clk 0:02:57]}  Bg7 {[%clk 0:02:43]} 5. Bg2 {[%clk 0:02:58]}  e5 {[%clk 0:02:43]} 6. O-O {[%clk 0:02:57]}  Nge7 {[%clk 0:02:44]} 7. d3 {[%clk 0:02:56]}  O-O {[%clk 0:02:44]} 8. Rb1 {[%clk 0:02:56]}  d6 {[%clk 0:02:43]} 9. a3 {[%clk 0:02:56]}  a5 {[%clk 0:02:41]} 10. Nd5 {[%clk 0:02:53]}  f5 {[%clk 0:02:33]} 11. Bg5 {[%clk 0:02:46]}  h6 {[%clk 0:02:24]} 12. Bxe7 {[%clk 0:02:25]}  Nxe7 {[%clk 0:02:23]} 13. Nd2 {[%clk 0:02:26]}  Kh7 {[%clk 0:02:16]} 14. b4 {[%clk 0:02:26]}  axb4 {[%clk 0:02:13]} 15. axb4 {[%clk 0:02:26]}  cxb4 {[%clk 0:02:08]} 16. Rxb4 {[%clk 0:02:21]}  Nc6 {[%clk 0:02:00]} 17. Rb1 {[%clk 0:01:57]}  Ra2 {[%clk 0:01:48]} 18. Nb4 {[%clk 0:01:50]}  Nxb4 {[%clk 0:01:43]} 19. Rxb4 {[%clk 0:01:51]}  Qa5 {[%clk 0:01:39]} 20. Qb3 {[%clk 0:00:35]}  Rxd2 {[%clk 0:01:36]} 21. Re1 {[%clk 0:00:36]}  Qa2 {[%clk 0:01:24]} 22. Qxa2 {[%clk 0:00:30]}  Rxa2 {[%clk 0:01:23]} 23. Bxb7 {[%clk 0:00:31]}  Bxb7 {[%clk 0:01:20]} 24. Rxb7 {[%clk 0:00:32]}  Kg8 {[%clk 0:01:18]} 25. Rd7 {[%clk 0:00:27]}  Ra6 {[%clk 0:01:15]} 26. Rb1 {[%clk 0:00:23]}  Rf7 {[%clk 0:01:14]} 27. Rb8+ {[%clk 0:00:22]}  Bf8 {[%clk 0:01:12]} 28. Rdd8 {[%clk 0:00:22]}  Kg7 {[%clk 0:01:11]} 29. f3 {[%clk 0:00:15]}  e4 {[%clk 0:01:09]} 30. Kf2 {[%clk 0:00:10]}  exd3 {[%clk 0:01:05]} 31. exd3 {[%clk 0:00:10]}  Ra2+ {[%clk 0:01:05]} 32. Ke3 {[%clk 0:00:09]}  Rxh2 {[%clk 0:01:01]} 33. d4 {[%clk 0:00:08]}  g5 {[%clk 0:01:01]} 34. Kd3 {[%clk 0:00:04]}  Rf2 {[%clk 0:01:00]} 35. Ke3 {[%clk 0:00:03]}  Rg2 {[%clk 0:01:00]} 36. c5 {[%clk 0:00:03]}  dxc5 {[%clk 0:00:59]} 37. d5 {[%clk 0:00:04]}  Rxg3 {[%clk 0:00:57]} 38. Kf2 {[%clk 0:00:04]}  f4 {[%clk 0:00:53]} 39. d6 {[%clk 0:00:05]}  Rh3 {[%clk 0:00:50]} 40. Kg2 {[%clk 0:00:03]}  Rg3+ {[%clk 0:00:49]} 41. Kf2 {[%clk 0:00:04]}  g4 {[%clk 0:00:49]} 42. fxg4 {[%clk 0:00:02]}  Rd3 {[%clk 0:00:49]} 43. d7 {[%clk 0:00:01]}  Rdxd7 {[%clk 0:00:48]} 0-1


[Site "https://www.chess.com"]

[Event "Titled Tuesday Blitz December 27 Late 2022"]
[White "Kaasen, Tor Fredrik"]
[Black "Ozdemir, Serhan Berat"]
[WhiteFideId "1516647"]
[BlackFideId "6374611"]
[WhiteElo "2480"]
[BlackElo "2223"]
[Result "1-0"]
[Round "04"]
[TimeControl "180+2"]
[Date "2022.12.27"]
[WhiteClock "0:00:08"]
[BlackClock "0:00:03"]

1. e4 {[%clk 0:03:00]}  c5 {[%clk 0:03:00]} 2. Ne2 {[%clk 0:03:00]}  e6 {[%clk 0:02:59]} 3. d4 {[%clk 0:02:57]}  cxd4 {[%clk 0:02:59]} 4. Nxd4 {[%clk 0:02:58]}  a6 {[%clk 0:02:57]} 5. g3 {[%clk 0:02:54]}  Nf6 {[%clk 0:02:50]} 6. Bg2 {[%clk 0:02:55]}  d6 {[%clk 0:02:50]} 7. O-O {[%clk 0:02:55]}  Be7 {[%clk 0:02:49]} 8. b3 {[%clk 0:02:54]}  O-O {[%clk 0:02:47]} 9. Bb2 {[%clk 0:02:55]}  Bd7 {[%clk 0:02:47]} 10. c4 {[%clk 0:02:55]}  Nc6 {[%clk 0:02:47]} 11. Nc3 {[%clk 0:02:53]}  Rc8 {[%clk 0:02:35]} 12. Re1 {[%clk 0:02:52]}  b5 {[%clk 0:02:19]} 13. cxb5 {[%clk 0:02:43]}  Nxd4 {[%clk 0:02:19]} 14. Qxd4 {[%clk 0:02:43]}  axb5 {[%clk 0:02:20]} 15. Bf1 {[%clk 0:02:23]}  e5 {[%clk 0:02:01]} 16. Qd2 {[%clk 0:01:58]}  Qb6 {[%clk 0:01:40]} 17. Rac1 {[%clk 0:01:47]}  b4 {[%clk 0:01:18]} 18. Nd5 {[%clk 0:01:38]}  Nxd5 {[%clk 0:01:18]} 19. Qxd5 {[%clk 0:01:38]}  Be6 {[%clk 0:01:18]} 20. Qd2 {[%clk 0:01:35]}  h6 {[%clk 0:01:02]} 21. Kg2 {[%clk 0:01:30]}  f5 {[%clk 0:00:42]} 22. exf5 {[%clk 0:01:24]}  Rxf5 {[%clk 0:00:42]} 23. Rxc8+ {[%clk 0:01:23]}  Bxc8 {[%clk 0:00:41]} 24. Bc4+ {[%clk 0:01:23]}  Kh8 {[%clk 0:00:40]} 25. Bd5 {[%clk 0:00:44]}  Bb7 {[%clk 0:00:35]} 26. Re2 {[%clk 0:00:39]}  Bg5 {[%clk 0:00:30]} 27. Qd3 {[%clk 0:00:38]}  Rf8 {[%clk 0:00:20]} 28. Qe4 {[%clk 0:00:37]}  Bxd5 {[%clk 0:00:17]} 29. Qxd5 {[%clk 0:00:38]}  Qa6 {[%clk 0:00:13]} 30. Qe4 {[%clk 0:00:35]}  Be7 {[%clk 0:00:08]} 31. Bc1 {[%clk 0:00:32]}  Bf6 {[%clk 0:00:04]} 32. Rc2 {[%clk 0:00:30]}  Rd8 {[%clk 0:00:03]} 33. Qxb4 {[%clk 0:00:26]}  d5 {[%clk 0:00:03]} 34. Bb2 {[%clk 0:00:14]}  d4 {[%clk 0:00:03]} 35. Qc4 {[%clk 0:00:13]}  Qa8+ {[%clk 0:00:04]} 36. Qc6 {[%clk 0:00:12]}  Qa5 {[%clk 0:00:02]} 37. Qc4 {[%clk 0:00:05]}  Qe1 {[%clk 0:00:02]} 38. Re2 {[%clk 0:00:04]}  Qa5 {[%clk 0:00:02]} 39. Qd3 {[%clk 0:00:05]}  Qa8+ {[%clk 0:00:02]} 40. f3 {[%clk 0:00:04]}  Qb8 {[%clk 0:00:01]} 41. h4 {[%clk 0:00:05]}  Rc8 {[%clk 0:00:02]} 42. Kh3 {[%clk 0:00:04]}  Qc7 {[%clk 0:00:01]} 43. g4 {[%clk 0:00:05]}  Qd7 {[%clk 0:00:02]} 44. Qf5 {[%clk 0:00:04]}  Qc6 {[%clk 0:00:02]} 45. g5 {[%clk 0:00:04]}  hxg5 {[%clk 0:00:02]} 46. hxg5 {[%clk 0:00:05]}  Be7 {[%clk 0:00:02]} 47. Kg4 {[%clk 0:00:06]}  Kg8 {[%clk 0:00:02]} 48. Rh2 {[%clk 0:00:06]}  Rc7 {[%clk 0:00:02]} 49. Qh7+ {[%clk 0:00:06]}  Kf7 {[%clk 0:00:02]} 50. Qh5+ {[%clk 0:00:07]}  Ke6 {[%clk 0:00:02]} 51. Qg6+ {[%clk 0:00:07]}  Kd5 {[%clk 0:00:03]} 52. Qe4+ {[%clk 0:00:07]}  Kd6 {[%clk 0:00:02]} 53. Qf5 {[%clk 0:00:07]}  Kd5 {[%clk 0:00:01]} 54. f4 {[%clk 0:00:07]}  Kd6 {[%clk 0:00:02]} 55. Qxe5+ {[%clk 0:00:07]}  Kd7 {[%clk 0:00:03]} 56. Qxd4+ {[%clk 0:00:08]}  Bd6 {[%clk 0:00:03]} 57. Rd2 {[%clk 0:00:08]} 1-0


[Site "https://www.chess.com"]

[Event "Titled Tuesday Blitz December 27 Late 2022"]
[White "Kamsky, Gata"]
[Black "Pershin, Denis"]
[WhiteFideId "2000024"]
[BlackFideId "24165506"]
[WhiteElo "2665"]
[BlackElo "2366"]
[Result "1-0"]
[Round "04"]
[TimeControl "180+2"]
[Date "2022.12.27"]
[WhiteClock "0:00:42"]
[BlackClock "0:00:03"]

1. d4 {[%clk 0:02:59]}  e6 {[%clk 0:02:55]} 2. Bf4 {[%clk 0:02:58]}  b6 {[%clk 0:02:53]} 3. e3 {[%clk 0:02:57]}  Bb7 {[%clk 0:02:53]} 4. Nd2 {[%clk 0:02:57]}  f5 {[%clk 0:02:54]} 5. a4 {[%clk 0:02:55]}  Nf6 {[%clk 0:02:48]} 6. a5 {[%clk 0:02:54]}  Be7 {[%clk 0:02:38]} 7. a6 {[%clk 0:02:53]}  Bc6 {[%clk 0:02:38]} 8. Ngf3 {[%clk 0:02:51]}  d6 {[%clk 0:02:37]} 9. h3 {[%clk 0:02:48]}  O-O {[%clk 0:02:31]} 10. Bc4 {[%clk 0:02:46]}  Nd5 {[%clk 0:02:31]} 11. Bh2 {[%clk 0:02:45]}  Nd7 {[%clk 0:02:24]} 12. Qe2 {[%clk 0:02:34]}  N7f6 {[%clk 0:02:18]} 13. O-O {[%clk 0:02:31]}  Qd7 {[%clk 0:02:14]} 14. Rfe1 {[%clk 0:02:27]}  Rae8 {[%clk 0:02:14]} 15. c3 {[%clk 0:02:10]}  Bd8 {[%clk 0:02:10]} 16. Qd3 {[%clk 0:01:46]}  Kh8 {[%clk 0:02:09]} 17. b4 {[%clk 0:01:42]}  Ne4 {[%clk 0:02:08]} 18. b5 {[%clk 0:01:37]}  Ba8 {[%clk 0:02:06]} 19. Rac1 {[%clk 0:01:33]}  Nxd2 {[%clk 0:01:46]} 20. Nxd2 {[%clk 0:01:29]}  Nf6 {[%clk 0:01:47]} 21. f3 {[%clk 0:01:21]}  d5 {[%clk 0:01:26]} 22. Bb3 {[%clk 0:01:19]}  c6 {[%clk 0:01:27]} 23. Ba4 {[%clk 0:01:17]}  Bc7 {[%clk 0:01:23]} 24. Bxc7 {[%clk 0:01:13]}  Qxc7 {[%clk 0:01:24]} 25. c4 {[%clk 0:01:13]}  c5 {[%clk 0:00:55]} 26. dxc5 {[%clk 0:01:09]}  dxc4 {[%clk 0:00:34]} 27. cxb6 {[%clk 0:01:00]}  Qxb6 {[%clk 0:00:21]} 28. Nxc4 {[%clk 0:00:59]}  Qb8 {[%clk 0:00:18]} 29. Qd6 {[%clk 0:00:55]}  Nd5 {[%clk 0:00:04]} 30. b6 {[%clk 0:00:44]}  Kg8 {[%clk 0:00:04]} 31. Bxe8 {[%clk 0:00:42]}  Qxe8 {[%clk 0:00:03]} 32. b7 {[%clk 0:00:42]} 1-0


[Site "https://www.chess.com"]